fUST/lending_fUST_20240620
["ID","MTS","AMOUNT","RATE_DAILY","PERIOD"]
[329958177,1718868641476,-192.629395,0.000483,14]
[329958180,1718868641487,-151.0,0.000483,14]
[329958182,1718868641498,-437.23862,0.000483,14]
[329958184,1718868641510,-437.23862,0.000483,14]
[329958186,1718868641521,-151.0,0.000483,14]
[329958188,1718868641533,-151.0,0.000483,14]
[329958191,1718868641544,-364.482285,0.000483,14]
[329958193,1718868641555,-364.482285,0.000483,14]
[329958195,1718868641566,-360.368746,0.000483,14]
[329958197,1718868641578,-360.368746,0.000483,14]
[329958200,1718868641591,-182.622112,0.000483,14]
[329958202,1718868641603,-182.622112,0.000483,14]
[329958204,1718868641615,-151.0,0.000483,14]
[329958206,1718868641627,-151.0,0.000483,14]
[329958208,1718868641638,-1801.4988677,0.000483,120]
[329958211,1718868641652,-30004.59924594,0.000483,120]
[329958213,1718868641664,-4192.90188636,0.000483,120]
[329958215,1718868641674,-17525.66116125,0.000484,14]
[329958217,1718868641684,-155.0,0.000489,30]
[329958233,1718868641822,-150.51031689,0.00048903,60]
[329958235,1718868641833,-1323.65772868,0.00048979,60]
[329958237,1718868641843,-1304.49573249,0.00049,120]
[329958239,1718868641852,-255.97056786,0.00049,120]
[329958241,1718868641862,-520.0,0.00049,26]
[329958243,1718868641871,-150.22734429,0.00049078,120]
[329958245,1718868641884,-300.87126241,0.00049315,31]
[329958247,1718868641894,-150.0,0.00049903,60]
[329958249,1718868641904,-306.0,0.0005,2]
[329958251,1718868641913,-154.79876161,0.0005,30]
[329958253,1718868641924,-1000.0,0.0005,120]
[329958255,1718868641934,-24700.92026002,0.0005,30]
[329958257,1718868641945,-2000.0,0.0005,120]
[329958259,1718868641954,-1000.0,0.0005,2]
[329958261,1718868641964,-194.68245908,0.0005,120]
[329958263,1718868641974,-5000.0,0.0005,120]
[329958265,1718868641984,-200.0,0.0005,120]
[329958267,1718868641994,-491.40344127,0.0005,2]
[329958269,1718868642004,-153.9,0.0005,14]
[329958271,1718868642013,-2000.0,0.0005,27]
[329958273,1718868642023,-997.0,0.0005,27]
[329958275,1718868642033,-153.9,0.0005,14]
[329958277,1718868642044,-151.0,0.0005,14]
[329958279,1718868642053,-192.629395,0.0005,14]
[329958281,1718868642063,-192.629395,0.0005,14]
[329958283,1718868642073,-151.0,0.0005,14]
[329958285,1718868642083,-437.23862,0.0005,14]
[329958287,1718868642094,-437.23862,0.0005,14]
[329958289,1718868642104,-154.457086,0.0005,14]
[329958291,1718868642116,-151.0,0.0005,14]
[329958292,1718868642127,-364.482285,0.0005,14]
[329958294,1718868642136,-364.482285,0.0005,14]
[329958297,1718868642146,-360.368746,0.0005,14]
[329958299,1718868642158,-360.368746,0.0005,14]
[329958301,1718868642168,-182.622112,0.0005,14]
[329958303,1718868642177,-182.622112,0.0005,14]
[329958304,1718868642187,-151.0,0.0005,14]
[329958307,1718868642200,-151.0,0.0005,14]
[329958308,1718868642211,-151.0,0.0005,14]
[329958310,1718868642221,-151.0,0.0005,14]
[329958312,1718868642230,-151.0,0.0005,14]
[329958314,1718868642240,-188.662392,0.0005,14]
[329958316,1718868642249,-186.500003,0.0005,14]
[329958318,1718868642259,-186.500003,0.0005,14]
[329958320,1718868642269,-151.0,0.0005,14]
[329958322,1718868642279,-151.0,0.0005,14]
[329958325,1718868642290,-416.0,0.00050066,120]
[329958326,1718868642299,-163.700622,0.00050068,2]
[329958329,1718868642309,-361.8,0.00050403,60]
[329958330,1718868642318,-151.0,0.00050403,60]
[329958333,1718868642327,-319.8672916,0.00050685,30]
[329958334,1718868642337,-3000.0,0.00051,85]
[329958336,1718868642347,-3000.0,0.0005101,85]
[329958338,1718868642357,-3000.0,0.0005102,85]
[329958341,1718868642367,-3000.0,0.0005103,85]
[329958343,1718868642377,-3000.0,0.0005104,85]
[329958344,1718868642387,-3000.0,0.0005105,85]
[329958346,1718868642396,-3000.0,0.0005106,85]
[329958348,1718868642406,-4067.865419,0.0005107,85]
[329958350,1718868642416,-309.8,0.00051394,60]
[329958352,1718868642425,-152.0,0.00051394,60]
[329958354,1718868642435,-2000.0,0.000515,120]
[329958356,1718868642444,-2000.0,0.000515,120]
[329958358,1718868642454,-2000.0,0.000515,120]
[329958360,1718868642464,-2000.0,0.000515,120]
[329958362,1718868642474,-762.11293429,0.00051998,4]
[329958364,1718868642484,-309.8,0.00052181,90]
[329958366,1718868642494,-152.0,0.00052181,90]
[329958368,1718868642504,-309.8,0.00052968,90]
[329958370,1718868642514,-152.0,0.00052968,90]
[329958372,1718868642524,-412.0,0.00053403,120]
[329958374,1718868642534,-520.0,0.000537,32]
[329958376,1718868642543,-520.0,0.000537,32]
[329958378,1718868642553,-309.8,0.00053755,90]
[329958380,1718868642563,-152.0,0.00053755,90]
[329958382,1718868642573,-1000.0,0.00054,2]
[329958384,1718868642582,-1490.1,0.00054,30]
[329958386,1718868642592,-1490.1,0.00054,30]
[329958388,1718868642602,-259.190954,0.00054,14]
[329958390,1718868642611,-192.629395,0.00054,14]
[329958393,1718868642622,-192.629395,0.00054,14]
[329958395,1718868642633,-229.355019,0.00054,14]
[329958397,1718868642643,-437.23862,0.00054,14]
[329958399,1718868642653,-437.23862,0.00054,14]
[329958401,1718868642663,-151.0,0.00054,14]
[329958403,1718868642672,-364.482285,0.00054,14]
[329958405,1718868642681,-364.482285,0.00054,14]
[329958407,1718868642691,-360.368746,0.00054,14]
[329958409,1718868642701,-360.368746,0.00054,14]
[329958411,1718868642712,-182.622112,0.00054,14]
[329958413,1718868642721,-182.622112,0.00054,14]
[329958415,1718868642730,-151.0,0.00054,14]
[329958417,1718868642740,-151.0,0.00054,14]
[329958419,1718868642749,-151.0,0.00054,14]
[329958421,1718868642759,-291.094327,0.00054,14]
[329958423,1718868642768,-151.0,0.00054,14]
[329958425,1718868642778,-186.500003,0.00054,14]
[329958427,1718868642788,-186.500003,0.00054,14]
[329958429,1718868642797,-151.0,0.00054,14]
[329958431,1718868642807,-151.0,0.00054,14]
[329958433,1718868642817,-200.0,0.000542,120]
[329958435,1718868642827,-361.8,0.00054502,90]
[329958437,1718868642836,-151.0,0.00054502,90]
[329958439,1718868642845,-309.8,0.00054541,90]
[329958441,1718868642855,-152.0,0.00054541,90]
[329958443,1718868642865,-151.0,0.00054632,11]
[329958445,1718868642876,-2000.0,0.000547,33]
[329958447,1718868642886,-2000.0,0.000547,33]
[329958449,1718868642897,-525.29369667,0.00054794,120]
[329958451,1718868642907,-250.0,0.00054794,120]
[329958453,1718868642917,-514.98274832,0.00054794,120]
[329958455,1718868642927,-505.91111813,0.00054794,120]
[329958457,1718868642937,-500.0,0.00054794,30]
[329958459,1718868642947,-500.0,0.00054794,120]
[329958462,1718868642956,-500.0,0.00054794,120]
[329958463,1718868642965,-442.2185022,0.00054794,120]
[329958468,1718868642979,-65.05129266,0.00054794,120]
[329958470,1718868642988,-500.0,0.00054794,120]
[329958472,1718868642998,-506.40892919,0.00054794,120]
[329958475,1718868643007,-500.0,0.00054794,120]
[329958477,1718868643016,-503.96890779,0.00054794,120]
[329958479,1718868643026,-515.09642908,0.00054794,120]
[329958481,1718868643035,-505.84919085,0.00054794,120]
[329958483,1718868643045,-58.89884881,0.00054794,120]
[329958497,1718868643145,-443.28202306,0.00054794,120]
[329958500,1718868643158,-153.9,0.00054794,14]
[329958502,1718868643167,-153.9,0.00054794,14]
[329958503,1718868643177,-153.9,0.00054794,14]
[329958505,1718868643187,-500.0,0.00054794,120]
[329958508,1718868643199,-153.9,0.00054794,14]
[329958510,1718868643209,-153.9,0.00054794,14]
[329958512,1718868643219,-502.5812045,0.00054794,120]
[329958514,1718868643228,-153.9,0.00054794,14]
[329958515,1718868643239,-153.9,0.00054794,14]
[329958517,1718868643248,-153.9,0.00054794,14]
[329958519,1718868643258,-153.9,0.00054794,14]
[329958521,1718868643268,-153.9,0.00054794,14]
[329958523,1718868643277,-227.90251125,0.00054794,120]
[329958526,1718868643287,-377.91202926,0.00054794,120]
[329958527,1718868643296,-504.28940873,0.00054794,120]
[329958529,1718868643306,-505.38882542,0.00054794,120]
[329958532,1718868643316,-500.0,0.00054794,120]
[329958534,1718868643326,-500.0,0.00054794,120]
[329958536,1718868643335,-504.5,0.00054794,120]
[329958538,1718868643344,-502.33087165,0.00054794,120]
[329958539,1718868643353,-502.66829382,0.00054794,120]
[329958541,1718868643362,-503.07082384,0.00054794,120]
[329958543,1718868643371,-406.43010924,0.00054794,120]
[329958545,1718868643382,-511.61106641,0.00054794,120]
[329958546,1718868643391,-500.0,0.00054794,120]
[329958547,1718868643400,-517.99,0.00054794,120]
[329958549,1718868643410,-517.99,0.00054794,120]
[329958550,1718868643420,-517.99,0.00054794,120]
[329958552,1718868643429,-517.99,0.00054794,120]
[329958554,1718868643438,-517.99,0.00054794,120]
[329958555,1718868643447,-517.99,0.00054794,120]
[329958557,1718868643456,-517.99,0.00054794,120]
[329958559,1718868643465,-517.99,0.00054794,120]
[329958561,1718868643474,-517.99,0.00054794,120]
[329958562,1718868643484,-517.99,0.00054794,120]
[329958564,1718868643493,-517.99,0.00054794,120]
[329958566,1718868643502,-517.99,0.00054794,120]
[329958567,1718868643511,-517.99,0.00054794,120]
[329958569,1718868643520,-517.99,0.00054794,120]
[329958571,1718868643528,-517.99,0.00054794,120]
[329958573,1718868643538,-517.99,0.00054794,120]
[329958574,1718868643547,-517.99,0.00054794,120]
[329958575,1718868643557,-517.99,0.00054794,120]
[329958576,1718868643566,-517.99,0.00054794,120]
[329958577,1718868643575,-517.99,0.00054794,120]
[329958578,1718868643584,-517.99,0.00054794,120]
[329958579,1718868643594,-517.99,0.00054794,120]
[329958580,1718868643603,-266.08279168,0.00054794,120]
[329958581,1718868643801,-251.90720832,0.00054794,120]
[329958583,1718868643811,-518.08278587,0.00054794,120]
[329958585,1718868643820,-321.69000588,0.00054794,120]
[329959247,1718869626143,-205.0,0.0002,2]
[329959248,1718869651114,-163.700622,0.00021096,2]
[329959249,1718869651133,-644.33723125,0.00022897,2]
[329959250,1718869746117,-150.0,0.00020797,2]
[329959251,1718869747094,-4355.66276875,0.00022897,2]
[329959252,1718869747114,-205.0,0.00023998,3]
[329959253,1718869747137,-300.0,0.00023999,2]
[329959254,1718869747157,-5139.8284215,0.00024,2]
[329959255,1718869755104,-9686.16239745,0.00024,2]
[329959256,1718869755124,-63091.02891047,0.00025556,2]
[329959257,1718869755145,-558.5,0.0002876,3]
[329959258,1718869755166,-1065.01,0.0002876,3]
[329959259,1718869755186,-887.51,0.0002876,3]
[329959260,1718869755206,-739.59,0.0002876,3]
[329959261,1718869755226,-16327.77464648,0.0002877,2]
[329959262,1718869764170,-616.33,0.0002876,3]
[329959263,1718869764190,-55359.64575152,0.0002877,2]
[329959310,1718869832799,-1600.31656669,0.0002877,2]
[329959312,1718869832866,-1352.70207437,0.0002877,2]
[329959314,1718869832879,-635.79487883,0.0002877,2]
[329959317,1718869832895,-5272.0,0.0002877,2]
[329959319,1718869832907,-1007.88974121,0.0002877,2]
[329959367,1718869840654,-1674.79371648,0.0002877,2]
[329959464,1718869843549,-101021.27245805,0.0002877,2]
[329959466,1718869843559,-978.45006277,0.00028959,2]
[329959468,1718869843571,-156.99516229,0.00029059,2]
[329959470,1718869843581,-223.90250004,0.0003,4]
[329959472,1718869843591,-30180.41802801,0.000315,120]
[329959474,1718869843600,-2661.14437847,0.00034,2]
[329959476,1718869843609,-156.99516229,0.000342,7]
[329959478,1718869843619,-297.23,0.0003489,3]
[329959480,1718869843628,-464.07,0.0003489,3]
[329959481,1718869843637,-386.72,0.0003489,3]
[329959483,1718869843647,-322.27,0.0003489,3]
[329959485,1718869843655,-27319.7412329,0.000349,2]
[329959487,1718869843664,-10335.12733816,0.00035,2]
[329959489,1718869843674,-398.38552761,0.00035,2]
[329959491,1718869843683,-163.700622,0.00035582,2]
[329959493,1718869843693,-156.99516229,0.00037507,7]
[329959495,1718869843701,-50000.04561244,0.00038,30]
[329959497,1718869843711,-156.99516229,0.00038019,7]
[329959499,1718869843720,-29177.65182761,0.0004007,2]
[329959501,1718869843732,-150.216,0.00041153,2]
[329959503,1718869843741,-1425.04928904,0.00045,4]
[329959507,1718869843751,-10694.86999767,0.00048,30]
[329959508,1718869843761,-160.0,0.000483,37]
[329959511,1718869843771,-150.0,0.00048755,5]
[329959512,1718869843780,-155.0,0.0004978,59]
[329959515,1718869843790,-154.79876161,0.0005,30]
[329959516,1718869843799,-3762.10383428,0.0005,30]
[329959519,1718869843808,-163.700622,0.00050068,2]
[329959520,1718869843818,-150.0,0.00051,85]
[329959523,1718869843827,-309.8,0.00051676,60]
[329959525,1718869843836,-152.0,0.00051676,60]
[329959527,1718869843846,-3721.42,0.00052054,30]
[329959529,1718869843855,-3721.42,0.00052054,30]
[329959531,1718869843864,-3721.42,0.00052054,30]
[329959533,1718869843873,-3721.42,0.00052054,30]
[329959535,1718869843883,-3721.42,0.00052054,30]
[329959537,1718869843892,-3721.42,0.00052054,30]
[329959539,1718869843902,-3721.42,0.00052054,30]
[329959541,1718869843912,-3721.42,0.00052054,30]
[329959543,1718869843921,-3721.42,0.00052054,30]
[329959545,1718869843931,-3721.42,0.00052054,30]
[329959547,1718869843941,-3721.42,0.00052054,30]
[329959549,1718869843950,-3721.42,0.00052054,30]
[329959551,1718869843959,-3721.42,0.00052054,30]
[329959553,1718869843968,-3721.42,0.00052054,30]
[329959555,1718869843979,-3721.42,0.00052054,30]
[329959557,1718869843988,-1929.91664923,0.00052054,30]
[329959559,1718869844001,-678.4691389,0.00052054,30]
[329959827,1718869846395,-1113.03421187,0.00052054,30]
[329959829,1718869846404,-3721.42,0.00052054,30]
[329959831,1718869846414,-3721.42,0.00052054,30]
[329959833,1718869846423,-2283.76926873,0.00052054,30]
[329961232,1718870842107,-270.16174361,0.00021095,2]
[329961233,1718870853100,-5.80584643,0.00021095,2]
[329961234,1718870853120,-170.633312,0.00021096,2]
[329961235,1718870853139,-163.700622,0.00021096,2]
[329961236,1718870853158,-1441.71990513,0.00025204,2]
[329961237,1718870853178,-166.963424,0.00025461,2]
[329961238,1718870853198,-24890.0,0.00026419,2]
[329961239,1718870853219,-504.3254449,0.00026576,2]
[329961240,1718870853238,-2593.7518855,0.00026647,2]
[329961241,1718870853257,-8773.0301538,0.00026736,2]
[329961242,1718870853278,-286.6245693,0.00026807,2]
[329961243,1718870853298,-1000.0,0.000272,2]
[329961244,1718870853319,-223.90250004,0.0003,4]
[329961245,1718870853339,-350.0,0.00030971,2]
[329961246,1718870853358,-221.7781641,0.00033644,2]
[329961247,1718870853379,-163.5221683,0.00037998,15]
[329961248,1718870853398,-221.77816408,0.00038907,2]
[329961249,1718870853416,-808.88059479,0.0004,2]
[329961250,1718870853437,-150.77383924,0.00040879,2]
[329961251,1718870853460,-30640.00071431,0.00044,11]
[329961252,1718870946116,-156.9951623,0.00027878,2]
[329961253,1718870946138,-156.9951623,0.00027988,2]
[329961254,1718870946159,-156.9951623,0.00029237,2]
[329961255,1718870946181,-156.9951623,0.00029309,2]
[329961256,1718870946204,-156.9951623,0.00030861,7]
[329961257,1718870946225,-156.9951623,0.00031971,7]
[329961258,1718870946246,-255.88857148,0.00041899,4]
[329961259,1718870946267,-417.21708637,0.000419,2]
[329961261,1718870990483,167.260182,0.000419,4]
[329961262,1718870990506,249.56685439,0.000419,4]
[329961263,1718870999133,278.72224367,0.000419,2]
[329961264,1718871004463,416.82703639,0.000419,4]
[329961265,1718871019141,283.83194505,0.000419,2]
[329961266,1718871022465,416.82703639,0.000419,4]
[329961288,1718871032592,-156.9951623,0.0004318,30]
[329961290,1718871032604,-166.33362306,0.000439,2]
[329961292,1718871032613,-856.14380495,0.000439,28]
[329961294,1718871032622,-287.87464291,0.00043998,4]
[329961295,1718871032631,-536.65527149,0.00043998,4]
[329961297,1718871032641,-202.40703923,0.00043999,2]
[329961299,1718871032650,-275.67337552,0.00043999,4]
[329961301,1718871032659,-175.63788626,0.00044,11]
[329961786,1718871038542,-1173.66402396,0.00044,11]
[329962004,1718871042480,416.82703639,0.000419,4]
[329962205,1718871045095,333.2024703,0.00032967,2]
[329962387,1718871047096,-1726.14506386,0.00044,11]
[329962423,1718871062485,156.31714722,0.000419,4]
[329962426,1718871075573,307.76245523,0.00027778,2]
[329962427,1718871087820,1977.60064253,0.00026574,2]
[329962428,1718871105004,1379.12183584,0.00026574,2]
[329962442,1718871726336,208.6642936,9.999e-05,2]
[329962444,1718872000170,-158.52973434,0.00021096,2]
[329962445,1718872025153,-5.17088766,0.00021096,2]
[329962446,1718872025174,-163.700622,0.00021096,2]
[329962447,1718872025195,-30.56258012,0.00025025,2]
[329962448,1718872030102,-136.69760188,0.00025025,2]
[329962449,1718872030123,-276.0330016,0.00025391,2]
[329962450,1718872030144,-7929.60858164,0.00026569,2]
[329962451,1718872030166,-1248.64144168,0.0002657,2]
[329962452,1718872030189,-208.48082717,0.00026571,2]
[329962453,1718872030220,-10898.36788428,0.00026573,2]
[329962457,1718872048096,-151.28629383,0.0002557,2]
[329962458,1718872048118,-433.61935413,0.00026572,2]
[329962459,1718872048138,-1108.20830689,0.00026573,2]
[329962461,1718872147145,-169.300368,0.00024473,2]
[329962462,1718872160105,-247.06346338,0.00024473,2]
[329962463,1718872160128,-7369.06965494,0.00026573,2]
[329962464,1718872160151,-151.75340781,0.0002805,2]
[329962465,1718872160178,-416.36383138,0.00029473,2]
[329962466,1718872160198,-300.0,0.0003,120]
[329962467,1718872160218,-150.99389809,0.000313,7]
[329962468,1718872160244,-585.3762787,0.00032991,2]
[329962469,1718872160264,-153.0,0.00032991,2]
[329962470,1718872160285,-312.0174166,0.00032991,2]
[329962471,1718872160308,-150.99389809,0.00033772,7]
[329962472,1718872160335,-150.99389809,0.00034082,7]
[329962473,1718872160356,-150.99389809,0.00034124,7]
[329962474,1718872160377,-150.99389809,0.00035341,7]
[329962475,1718872160398,-150.99389809,0.00035724,7]
[329962476,1718872160418,-165.333688,0.00035768,2]
[329962477,1718872160438,-150.99389809,0.00038052,7]
[329962478,1718872160460,-300.0,0.0004,120]
[329962479,1718872160481,-808.88059479,0.0004,2]
[329962480,1718872160500,-1483.165,0.00041553,2]
[329962481,1718872160520,-150.99389809,0.0004178,30]
[329962482,1718872160540,-162.12754738,0.000419,4]
[329962483,1718872160564,-150.9938981,0.00042708,30]
[329962484,1718872160583,-154.0,0.00043,90]
[329962485,1718872160603,-154.0,0.00043014,90]
[329962486,1718872205536,5498.93888474,0.00021845,2]
[329962487,1718872205558,4266.86293879,0.00021845,2]
[329962488,1718872206403,273.73212644,0.00021845,2]
[329962489,1718872206426,4726.26787356,0.00021845,2]
[329962490,1718872206728,1525.63172388,0.00021845,2]
[329962491,1718872206750,150.0,0.00021845,2]
[329962492,1718872206771,225.25685943,0.00021845,2]
[329962510,1718872232971,-552.72494088,0.00021845,2]
[329962512,1718872233029,-561.46296804,0.00021845,2]
[329962747,1718872243160,-1984.92350777,0.00021845,2]
[329962749,1718872243170,-2117.18064412,0.00021845,2]
[329962835,1718872355528,252.75021115,9.9e-05,2]
[329962836,1718872396931,154.78330338,9.999e-05,2]
[329962838,1718872640655,-283.55287723,0.00021843,2]
[329962839,1718872640677,-154.82968734,0.00021843,2]
[329962840,1718872640701,-512.98664281,0.00021843,2]
[329962841,1718872640722,-154.82968734,0.00021843,2]
[329962842,1718872640744,-158.31830716,0.00021843,2]
[329962843,1718872640765,-154.85988006,0.00021843,2]
[329962844,1718872640787,-262.37089328,0.00021843,2]
[329962845,1718872640808,-155.22325118,0.00021843,2]
[329962846,1718872640829,-160.00141462,0.00021844,2]
[329962847,1718872640851,-662.40027232,0.00021844,2]
[329962848,1718872640872,-195.31628,0.00021844,2]
[329962849,1718872640894,-145.31080666,0.00021845,2]
[329962865,1718873231181,-163.700622,0.00021096,2]
[329962866,1718873231204,-163.700622,0.00021096,2]
[329962867,1718873231228,-480.63660925,0.00021845,2]
[329962868,1718873251143,-205.0,0.00021845,2]
[329962872,1718873348143,-1357.00572902,0.00016,2]
[329962873,1718873348270,-150.0,0.00019745,2]
[329962874,1718873348291,-2051.87193997,0.00021845,2]
[329962875,1718873348312,-5000.0,0.00021845,2]
[329962876,1718873348333,-225.30707158,0.00021845,2]
[329962877,1718873348353,-1727.00464002,0.00023999,2]
[329962878,1718873348379,-9686.16239745,0.00024,2]
[329962879,1718873349740,-150.0,0.00024745,2]
[329962880,1718873349767,-153.86175581,0.00025626,2]
[329962881,1718873349908,-153.86175581,0.00026463,2]
[329962882,1718873349929,-4.52694611,0.00026848,2]
[329962883,1718873350176,-614.09089721,0.00026848,2]
[329962884,1718873350197,-500.0,0.00026848,2]
[329962885,1718873350221,-1028.57757125,0.00027372,2]
[329962886,1718873350242,-5323.93327801,0.00027372,2]
[329962887,1718873350263,-2846.07,0.00027462,3]
[329962888,1718873350284,-2371.73,0.00027462,3]
[329962889,1718873350308,-430.51902353,0.00027471,2]
[329962890,1718873350331,-500.0,0.00027471,2]
[329962891,1718873350353,-239.14121109,0.00027471,2]
[329962892,1718873350375,-153.72277467,0.00028399,2]
[329962893,1718873350396,-153.72277467,0.00028828,2]
[329962894,1718873350416,-150.0,0.00029745,2]
[329962895,1718873350436,-223.90250004,0.0003,4]
[329962896,1718873350456,-153.72277467,0.00030262,7]
[329962897,1718873350477,-638.1,0.00030647,15]
[329962898,1718873350498,-153.72277467,0.00030656,7]
[329962899,1718873350518,-153.72277467,0.00030812,7]
[329962900,1718873350539,-153.72277467,0.00033506,7]
[329962901,1718873350567,-7064.26528585,0.00034,2]
[329962902,1718873350589,-638.1,0.00034679,15]
[329962903,1718873350609,-279.96352311,0.00035,4]
[329962904,1718873350631,-1757.35733524,0.00035,5]
[329962905,1718873350657,-215.808142,0.00036121,2]
[329962906,1718873350679,-1547.05707356,0.00038,120]
[329962907,1718873350701,-291.93718684,0.00038711,15]
[329962908,1718873354092,-346.16281316,0.00038711,15]
[329962909,1718873354110,-8664.54305592,0.000388,120]
[329962910,1718873354131,-151.75340781,0.00039338,7]
[329962911,1718873354150,-502.732,0.00039738,2]
[329962912,1718873354168,-1062.716,0.00039738,2]
[329962913,1718873354187,-160.53303812,0.00041096,30]
[329962914,1718873354207,-150.0,0.00041193,2]
[329962915,1718873354227,-433.68240196,0.00041323,2]
[329962917,1718873355105,-4839.71050685,0.00041323,2]
[329962918,1718873355125,-153.72277467,0.00042106,30]
[329962919,1718873355145,-150.77383924,0.00042466,2]
[329962920,1718873355165,-1963.29851572,0.000425,30]
[329962921,1718873355186,-10000.0,0.000425,80]
[329962922,1718873355207,-638.1,0.00042743,31]
[329962923,1718873358716,1976.44,0.00027462,3]
[329962924,1718873367409,1355.574899,0.00027471,2]
[329962925,1718873370478,1647.03,0.00027462,3]
[329962926,1718873373691,1463.13388281,0.000425,30]
[329962927,1718873379889,225.20664728,0.00021845,2]
[329962977,1718873432284,-500.0,0.00027461,2]
[329962979,1718873432294,-500.0,0.00027461,2]
[329962982,1718873432304,-500.0,0.00027461,2]
[329962984,1718873432314,-500.0,0.00027461,2]
[329962986,1718873432323,-500.0,0.00027461,2]
[329962987,1718873432332,-500.0,0.00027461,2]
[329962989,1718873432342,-500.0,0.00027461,2]
[329962992,1718873432351,-661.91,0.00027462,3]
[329962993,1718873432361,-22731.32858233,0.00027472,120]
[329963404,1718873438827,-155.27359838,0.00027461,2]
[329963457,1718873440528,-344.72640162,0.00027461,2]
[329963459,1718873440537,-500.0,0.00027461,2]
[329963461,1718873440546,-500.0,0.00027461,2]
[329963463,1718873440556,-500.0,0.00027461,2]
[329963465,1718873440565,-500.0,0.00027461,2]
[329963467,1718873440574,-500.0,0.00027461,2]
[329963469,1718873440583,-500.0,0.00027461,2]
[329963471,1718873440593,-500.0,0.00027461,2]
[329963473,1718873440602,-500.0,0.00027461,2]
[329963475,1718873440611,-500.0,0.00027461,2]
[329963477,1718873440620,-500.0,0.00027461,2]
[329963479,1718873440629,-500.0,0.00027461,2]
[329963481,1718873440638,-500.0,0.00027461,2]
[329963483,1718873440648,-500.0,0.00027461,2]
[329963485,1718873440657,-500.0,0.00027461,2]
[329963487,1718873440670,-500.0,0.00027461,2]
[329963489,1718873440680,-500.0,0.00027461,2]
[329963491,1718873440690,-500.0,0.00027461,2]
[329963493,1718873440700,-500.0,0.00027461,2]
[329963495,1718873440709,-500.0,0.00027461,2]
[329963497,1718873440718,-500.0,0.00027461,2]
[329963499,1718873440727,-500.0,0.00027461,2]
[329963501,1718873440737,-500.0,0.00027461,2]
[329963503,1718873440748,-500.0,0.00027461,2]
[329963505,1718873440758,-500.0,0.00027461,2]
[329963507,1718873440767,-240.28098452,0.00027461,2]
[329963509,1718873440779,-259.71901548,0.00027461,2]
[329963511,1718873440788,-500.0,0.00027461,2]
[329963513,1718873440798,-500.0,0.00027461,2]
[329963515,1718873440807,-500.0,0.00027461,2]
[329963517,1718873440817,-500.0,0.00027461,2]
[329963519,1718873440827,-500.0,0.00027461,2]
[329963521,1718873440836,-422.08237386,0.00027461,2]
[329963523,1718873440846,-616.57482954,0.00027462,3]
[329963526,1718873440859,-645.63517046,0.00027462,3]
[329963528,1718873440868,-5924.86482954,0.00027472,120]
[329963531,1718873440888,-24368.89890894,0.00027472,120]
[329963605,1718873443405,-500.0,0.00027461,2]
[329963607,1718873443415,-500.0,0.00027461,2]
[329963609,1718873443425,-500.0,0.00027461,2]
[329963621,1718873443528,-201.38671425,0.00027461,2]
[329963624,1718873443552,-124.0607272,0.00027461,2]
[329963665,1718873446580,-174.55255855,0.00027461,2]
[329963666,1718873446590,-327.33385476,0.00027461,2]
[329963667,1718873446729,-172.66614524,0.00027461,2]
[329963668,1718873446739,-200.0,0.00027461,2]
[329963669,1718873446749,-3329.3029787,0.00027472,120]